[Event "45th FIDE Olympiad 2024"]
[Site "Budapest"]
[Date "2024.09.14"]
[Round "4.60"]
[White "Itgelt, Khuyagtsogt"]
[Black "Svane, Frederik"]
[Result "0-1"]
[ECO "E01"]
[WhiteElo "2412"]
[BlackElo "2640"]
[Annotator "TA"]
[PlyCount "74"]
[EventDate "2024.09.05"]
[EventType "team-tourn"]
[EventCountry "HUN"]
[SourceTitle "playchess.com"]
[Source "ChessBase"]
[SourceQuality "1"]
[WhiteTeam "Mongolia"]
[BlackTeam "Germany"]
[WhiteTeamCountry "MGL"]
[BlackTeamCountry "GER"]
[TimeControl "40/5400+30:1800+30"]

{[%evp 9,74,8,7,0,18,8,28,20,24,18,28,19,22,0,0,0,0,-6,7,-8,-8,0,0,0,0,10,-1,-25,-17,-21,-33,-53,-42,-79,-71,-79,-45,-114,-45,-43,-44,-114,-130,-145,-157,-156,-154,-157,-173,-223,-229,-613,-325,-372,-386,-567,-542,-691,-597,-705,-628,-709,-701,-683,-690,-650,-610]} 1. d4 {[%emt 0:00:05]} Nf6 {[%emt 0:00:06]} 2. c4 {[%emt 0:00:06]} e6 {[%emt 0:00:06]} 3. g3 {[%emt 0:00:06]} Bb4+ {[%emt 0:00:16]} 4. Nd2 {[%emt 0:00:07]} d5 {[%emt 0:00:41]} 5. Bg2 {[%emt 0:00:07]} a5 {[%emt 0:00:13]} 6. Ngf3 {[%emt 0:00:34]} a4 {[%emt 0:00:10]} 7. a3 {[%emt 0:02:58]} Be7 {[%emt 0:00:45]} 8. O-O {[%emt 0:01:19] White has an edge.} Nc6 {[%emt 0:00:06]} 9. Qc2 {[%emt 0:05:20]} O-O {[%emt 0:01:50]} 10. Rd1 {[%emt 0:02:18]} Bd7 {[%emt 0:00:06]} 11. e4 {[%emt 0:05:19]} dxe4 {[%emt 0:00:48]} 12. Nxe4 {[%emt 0:00:07]} Nxe4 {[%emt 0:00:04]} 13. Qxe4 {[%emt 0:00:09]} Na5 {[%emt 0:00:02]} 14. Ne5 {[%emt 0:00:11]} Be8 {[%emt 0:00:16]} 15. Be3 {[%emt 0:09:01]} f6 {[%emt 0:07:40]} 16. Nd3 {[%emt 0:02:06]} Qc8 {[%emt 0:00:13]} (16... Nxc4 17. Nc5 Bf7 18. Nxe6 $16 (18. Qxb7 Rb8 $11)) 17. Nf4 {[%emt 0:02:48] Against Bg6} Bf7 {[%emt 0:00:33][%cal Og7g5]} 18. Bh3 {[%emt 0:01:13]} f5 $1 {[%emt 0:02:10]} 19. Qc2 {[%emt 0:01:50]} Nb3 {[%emt 0:03:02]} 20. Rab1 {[%emt 0:05:34]} c6 {[%emt 0:06:19]} 21. Bf1 {[%emt 0:27:44]} Bf6 {[%emt 0:08:12]} 22. c5 {[%emt 0:10:35]} Kh8 {[%emt 0:21:12]} 23. Bc4 {[%emt 0:19:31]} ({Better is} 23. h4 $15) 23... Qe8 {[%emt 0:00:41]} (23... g5 $17 24. Ne2 f4 25. gxf4 gxf4 (25... Bg6 26. Bd3 $11) 26. Bxf4 e5) 24. h4 $15 {[%emt 0:00:56][%cal Od1d3]} Rd8 {[%emt 0:02:18][%cal Rf6d4]} 25. Re1 {[%emt 0:01:53]} (25. Qe2 $15) 25... Bxd4 $17 {[%emt 0:09:02]} (25... Nxd4 $6 26. Bxd4 Rxd4 27. Bxe6 Rxf4 28. Bxf7 (28. Bxf5 Rxf5 29. Rxe8 Bxe8 $17) 28... Qxf7 29. gxf4 Qg6+ 30. Kf1 $11) 26. Bxb3 {[%emt 0:00:04]} axb3 {[%emt 0:00:09]} 27. Qxb3 {[%emt 0:00:04] [#]} Bf6 {[%emt 0:00:26] Strongly threatening ...e5.} ({Much worse is} 27... e5 $6 28. Qb4 $11) 28. Qxb7 {[%emt 0:00:21]} e5 {[%emt 0:00:12][%cal Od8b8]} 29. Nh3 {[%emt 0:01:40]} (29. Bc1 $142) 29... Bd5 {[%emt 0:01:07]} 30. Bg5 $2 {[%emt 0:00:04]} (30. Rbd1) 30... Qh5 {[%emt 0:06:27]} 31. Bxf6 {[%emt 0:00:04]} gxf6 {[%emt 0:00:08]} 32. Kh2 {[%emt 0:00:01] [#]} (32. Rbd1 $142 Qf3 33. Rxd5 Qxd5 34. Qc7) 32... f4 $1 $19 {[%emt 0:11:16][%mdl 512] ( -> ...fxg3+). Black is clearly winning.} 33. Rg1 {[%emt 0:00:03] [#]} (33. Qb4 Rg8) 33... Be6 $1 {[%emt 0:00:27] ...Qg4 is the strong threat.} 34. gxf4 {[%emt 0:00:16]} Rd7 {[%emt 0:00:39]} ({And not} 34... Qxh4 35. Qg7#) ({Stronger than} 34... Bg4 35. Rxg4 Qxg4 36. Qxc6 $15) 35. Qxc6 {[%emt 0:01:29]} Bxh3 {[%emt 0:00:14]} 36. Kxh3 {[%emt 0:00:55]} Rd3+ {[%emt 0:00:17]} 37. Rg3 {[%emt 0:00:23]} Qf5+ {[%emt 0:00:10] Weighted Error Value: White=0.42/Black=0.14 (very precise) .  Mistake:       	White=5     	Black=1      Inaccurate:     	White=2     	Black=2      OK:         	White=7     	Black=10     Best:        	White=1     	Black=3      Strong:       	---       	Black=2      Brilliant:      	---       	Black=1} 0-1

[Event "45th FIDE Olympiad 2024"]
[Site "Budapest"]
[Date "2024.09.14"]
[Round "4.61"]
[White "Mohammad Fahad, Rahman"]
[Black "Vachier-Lagrave, Maxime"]
[Result "0-1"]
[ECO "D24"]
[WhiteElo "2419"]
[BlackElo "2731"]
[Annotator "TA"]
[PlyCount "86"]
[EventDate "2024.09.05"]
[EventType "team-tourn"]
[EventCountry "HUN"]
[SourceTitle "playchess.com"]
[Source "ChessBase"]
[SourceQuality "1"]
[WhiteTeam "Bangladesh"]
[BlackTeam "France"]
[WhiteTeamCountry "BAN"]
[BlackTeamCountry "FRA"]
[TimeControl "40/5400+30:1800+30"]

{[%evp 9,86,22,50,47,40,44,49,22,22,12,13,10,16,21,25,0,0,0,0,-64,0,0,0,0,0,0,0,-8,-8,-91,-66,-50,-43,-37,-61,-81,-46,-52,-68,-68,-59,-74,-71,-92,-89,-89,-90,-446,-450,-455,-450,-431,-440,-342,-223,-345,-346,-330,-291,-338,-335,-362,-369,-355,-360,-360,-370,-414,-375,-493,-398,-603,-606,-696,-677,-841,-816,-707,-675]} 1. d4 {[%emt 0:00:10]} Nf6 {[%emt 0:00:04]} 2. c4 {[%emt 0:00:21]} e6 {[%emt 0:00:03]} 3. Nf3 {[%emt 0:00:13]} d5 {[%emt 0:00:03]} 4. Nc3 {[%emt 0:00:37]} dxc4 {[%emt 0:00:03]} 5. e4 {[%emt 0:00:47][%cal Be2e4,Be4e5][%mdl 32]} b5 {[%emt 0:00:04]} 6. e5 $1 {[%emt 0:00:28]} Nd5 {[%emt 0:00:03]} 7. Nxb5 {[%emt 0:00:06]} Nb6 {[%emt 0:00:03]} 8. a4 {[%emt 0:08:59] White is slightly better.} Qd7 {[%emt 0:01:37]} 9. Na3 {[%emt 0:03:58]} Bb4+ {[%emt 0:09:48]} 10. Bd2 {[%emt 0:00:09]} Bxa3 {[%emt 0:00:03]} 11. Rxa3 {[%emt 0:00:28] With the idea a5.} a5 $1 {[%emt 0:00:03]} 12. b3 {[%emt 0:12:20]} Nc6 {[%emt 0:09:21]} 13. bxc4 {[%emt 0:10:19]} Ba6 {[%emt 0:01:21]} 14. d5 {[%emt 0:03:43]} Nb4 {[%emt 0:04:14]} ({Black should play} 14... exd5 $15 15. cxd5 Bxf1 16. Kxf1 (16. dxc6 Qe7 $17) 16... Qxd5 (16... Nxd5 17. h4 $11)) 15. dxe6 $1 $11 {[%emt 0:04:12]} (15. Bxb4 axb4 16. Ra1 exd5 $17 (16... Nxc4 17. d6 $17)) 15... fxe6 {[%emt 0:00:24]} 16. Qb3 {[%emt 0:03:24]} O-O {[%emt 0:10:53]} 17. Be2 {[%emt 0:11:19][%cal Oe1g1]} Rad8 {[%emt 0:14:36][%cal Of8f3]} 18. Bxb4 {[%emt 0:10:30]} axb4 {[%emt 0:00:07]} 19. Ra2 {[%emt 0:00:11] [#]} (19. Ra1 $11 Qc6 20. O-O (20. Qxb4 Bxc4 21. Rc1 Qe4 $11) 20... Bxc4 21. Bxc4 Qxc4 22. Qxc4 Nxc4 23. Rfc1) 19... Bxc4 $1 {[%emt 0:03:07]} 20. Bxc4 {[%emt 0:01:14]} Nxc4 {[%emt 0:00:05]} 21. O-O $1 {[%emt 0:00:25]} Qd5 {[%emt 0:00:10] Strongly threatening ...Na5.} 22. Rc2 {[%emt 0:06:38] [#]} Na3 {[%emt 0:05:36] Black is more active.} (22... Nxe5 23. Qxd5 Rxd5 24. Nxe5 Rxe5 25. Rxc7 $11) 23. Qxd5 {[%emt 0:02:26]} Rxd5 {[%emt 0:00:05]} 24. Rxc7 {[%emt 0:00:23]} Rb8 {[%emt 0:00:05] Against Rb7. Hoping for ...b3.} 25. h4 {[%emt 0:04:39]} Rd3 {[%emt 0:03:17]} 26. a5 {[%emt 0:11:47]} b3 {[%emt 0:00:05] Threatens to win with ...b2.} 27. a6 {[%emt 0:00:08]} b2 {[%emt 0:00:13]} 28. Rb7 $2 {[%emt 0:01:26][%mdl 8192] This move loses the game for White.} (28. Kh2 $17 {is tougher.}) 28... Rxb7 $19 {[%emt 0:01:02]} (28... b1=Q $2 29. Rfxb1 Rf8 30. Rc1 $18 (30. R1b6 Rd1+ 31. Kh2 Rd5 $18)) 29. axb7 {[%emt 0:00:03][%mdl 4096] Endgame. KRN-KRN} Rb3 {[%emt 0:00:07]} (29... b1=R $2 30. Rxb1 Rd8 31. b8=Q $18 (31. b8=R Rf8 $18)) 30. Nd2 {[%emt 0:00:11]} Rxb7 {[%emt 0:00:06]} (30... b1=Q $2 {is the wrong capture.} 31. Rxb1 $18 (31. Nxb1 $2 {perishes.} Nxb1 32. Rd1 Rxb7 $19) (31. Nxb1 $2 {too greedy.} Nxb1 32. Rc1 Rxb7 $19)) 31. Nb1 {[%emt 0:00:05]} Nc4 {[%emt 0:03:58][%cal Ob7c7] ...Rc7! is the strong threat.} 32. f4 {[%emt 0:00:20]} (32. Re1 $142) 32... Ne3 {[%emt 0:02:48]} 33. Re1 {[%emt 0:02:10]} Nf5 {[%emt 0:01:09]} 34. Kf2 {[%emt 0:01:42]} h5 {[%emt 0:01:59]} 35. Nd2 {[%emt 0:00:23]} Nxh4 {[%emt 0:00:22]} 36. Rb1 {[%emt 0:00:18]} Rb4 {[%emt 0:00:05] Prevents Nc4} 37. g3 {[%emt 0:00:31]} Nf5 {[%emt 0:00:04]} 38. Nf3 {[%emt 0:00:09]} Kf7 {[%emt 0:01:39] And now ...Ke7 would win.} 39. Nd2 {[%emt 0:00:47]} Ke7 {[%emt 0:01:23]} 40. Nf3 {[%emt 0:00:07]} (40. Nf1 $142) 40... Kd7 {[%emt 0:01:21] Black is clearly winning.} 41. Nd2 {[%emt 0:03:47]} Kc6 {[%emt 0:00:39]} 42. Nf3 {[%emt 0:00:25]} Kc5 {[%emt 0:01:22]} 43. Ng5 {[%emt 0:00:20]} Kd5 {[%emt 0:00:20] Weighted Error Value: White=0.46/Black=0.14 (very precise) .  Loses game:     	White=1     	---        Mistake:       	White=4     	Black=1      Inaccurate:     	White=2     	Black=1      OK:         	White=8     	Black=16     Best:        	White=3     	Black=5      Strong:       	White=2     	Black=1} 0-1

[Event "45th FIDE Olympiad 2024"]
[Site "Budapest"]
[Date "2024.09.14"]
[Round "4.61"]
[White "Murphy, Jones"]
[Black "Mompel Ferruz, Xavier"]
[Result "0-1"]
[ECO "A36"]
[WhiteElo "2021"]
[BlackElo "2273"]
[PlyCount "64"]
[EventDate "2024.09.05"]
[EventType "team-tourn"]
[EventCountry "HUN"]
[WhiteTeam "Dominica"]
[BlackTeam "Equatorial Guinea"]
[WhiteTeamCountry "DMA"]
[TimeControl "40/5400+30:1800+30"]

1. e4 c5 2. c4 Nc6 3. Nc3 g6 4. g3 Bg7 5. Bg2 d6 6. d3 e6 7. Nge2 Nge7 8. Rb1 O-O 9. O-O b6 10. a3 Bb7 11. b4 Nd4 12. Bg5 Nxe2+ 13. Nxe2 f6 14. Be3 Rc8 15. Qb3 f5 16. f3 Nc6 17. bxc5 dxc5 18. Bxc5 Na5 19. Bxb6 Qxb6+ 20. Qxb6 axb6 21. Rxb6 Bc6 22. Ra6 Nb3 23. Rb6 Nd4 24. Kf2 fxe4 25. dxe4 Bxe4 26. Ke3 Nxe2 27. Kxe2 Rxc4 28. Bh3 Bf5 29. Bxf5 exf5 30. Rd1 Rc2+ 31. Rd2 Rxd2+ 32. Kxd2 Ra8 {0-} 0-1

[Event "45th FIDE Olympiad 2024"]
[Site "Budapest"]
[Date "2024.09.14"]
[Round "4.62"]
[White "Maurizzi, Marc`andria"]
[Black "Manon, Reja Neer"]
[Result "1/2-1/2"]
[ECO "B12"]
[WhiteElo "2595"]
[BlackElo "2417"]
[Annotator "TA"]
[PlyCount "56"]
[EventDate "2024.09.05"]
[EventType "team-tourn"]
[EventCountry "HUN"]
[SourceTitle "playchess.com"]
[Source "ChessBase"]
[SourceQuality "1"]
[WhiteTeam "France"]
[BlackTeam "Bangladesh"]
[WhiteTeamCountry "FRA"]
[BlackTeamCountry "BAN"]
[TimeControl "40/5400+30:1800+30"]

{[%evp 9,56,15,12,8,16,6,19,0,1,-6,-6,-22,-35,-37,-30,-33,-31,-24,-34,-40,-33,-54,-35,-35,-41,-74,-72,-83,-79,-121,-113,-124,-116,-117,-118,-116,-118,-148,-159,-152,-163,-132,-134,-191,-164,-178,-140,-122,0]} 1. e4 {[%emt 0:00:15]} c6 {[%emt 0:00:10]} 2. d4 {[%emt 0:02:41]} d5 {[%emt 0:00:09]} 3. e5 {[%emt 0:01:11]} Bf5 {[%emt 0:00:05]} 4. h4 {[%emt 0:00:34]} h5 {[%emt 0:05:44]} 5. Bd3 {[%emt 0:00:55]} Bxd3 {[%emt 0:00:03]} 6. Qxd3 {[%emt 0:00:10][%cal Oe5e6]} Qa5+ {[%emt 0:00:05]} 7. Nd2 {[%emt 0:00:17][%cal Oe5e6] And now e6! would win.} e6 {[%emt 0:01:32]} 8. Ne2 {[%emt 0:02:51] The position is equal.} Qa6 {[%emt 0:13:16]} 9. c4 {[%emt 0:01:02]} Ne7 {[%emt 0:04:35][%cal Bg8e7,Be7f5,Bf5h4][%mdl 32]} 10. O-O {[%emt 0:06:24]} Nf5 {[%emt 0:03:42]} 11. Rb1 {[%emt 0:00:32]} Bb4 {[%emt 0:08:21]} 12. b3 {[%emt 0:10:39]} Nxh4 {[%emt 0:12:47]} 13. a3 {[%emt 0:05:34]} Be7 {[%emt 0:01:48]} (13... Bxa3 $2 14. Ra1 $18) 14. b4 {[%emt 0:04:52]} Nd7 {[%emt 0:18:50]} 15. Nc3 {[%emt 0:30:07]} g6 {[%emt 0:09:26]} 16. b5 {[%emt 0:06:21]} Qa5 {[%emt 0:00:07]} 17. bxc6 {[%emt 0:05:36]} bxc6 {[%emt 0:00:09]} 18. cxd5 {[%emt 0:00:13]} cxd5 {[%emt 0:00:13][%cal Oa8c8]} 19. Rb7 {[%emt 0:00:10] [#]} Rb8 $1 {[%emt 0:02:24]} 20. Nb3 {[%emt 0:09:47]} Qd8 {[%emt 0:00:17]} 21. Qb5 {[%emt 0:02:15][%cal Ob7d7] [#] Black must now prevent Rxd7!} Rxb7 {[%emt 0:03:58]} 22. Qxb7 {[%emt 0:00:01]} Qb8 {[%emt 0:00:18]} 23. Qc6 {[%emt 0:02:29]} Qxb3 {[%emt 0:09:34]} 24. Nb5 {[%emt 0:00:01] [#] Threatens to win with Qc8+.} O-O $1 {[%emt 0:00:35]} 25. Qxd7 {[%emt 0:00:04]} Nf5 {[%emt 0:00:05] aiming for ...h4.} 26. Nd6 {[%emt 0:00:04]} Bxd6 {[%emt 0:03:18]} 27. exd6 {[%emt 0:00:05]} Qb6 {[%emt 0:00:38]} ({Weaker is} 27... Nxd4 28. Bg5 Qb6 (28... Qxa3 29. Qe7 $16) 29. Re1 $11) 28. Bg5 {[%emt 0:01:54] Wards off Rd8} Qxd6 {[%emt 0:01:12] Weighted Error Value: White=0.10 (very precise) /Black=0.04 (flawless) .  Mistake:       	---       	Black=1      Inaccurate:     	White=2     	---        OK:         	White=6     	Black=15     Best:        	White=3     	Black=1      Strong:       	---       	Black=1} (28... Ra8 $17 29. Be7 Nxd4 (29... Qxd4 $2 {perishes.} 30. Qb7 $18)) 1/2-1/2

[Event "45th FIDE Olympiad 2024"]
[Site "Budapest"]
[Date "2024.09.14"]
[Round "4.62"]
[White "Oscar Naranjo Gonzalez"]
[Black "Bridet, Robert"]
[Result "0-1"]
[ECO "C70"]
[WhiteElo "1861"]
[BlackElo "1697"]
[PlyCount "97"]
[EventDate "2024.09.05"]
[EventType "team-tourn"]
[EventCountry "HUN"]
[WhiteTeam "Equatorial Guinea"]
[BlackTeam "Dominica"]
[BlackTeamCountry "DMA"]
[TimeControl "40/5400+30:1800+30"]

1. e4 e5 2. Nf3 Nc6 3. Bb5 Bc5 4. c3 a6 5. Ba4 b5 6. Bb3 Qe7 7. O-O Nf6 8. d4 Bb6 9. Re1 O-O 10. Bg5 h6 11. Bh4 d6 12. h3 Bb7 13. a4 Na5 14. Bc2 Qe6 15. Nbd2 c5 16. b4 cxb4 17. cxb4 Nc4 18. d5 Qd7 19. Bxf6 gxf6 20. Nh4 Kh7 21. Nf5 Rg8 22. Nf1 Rg5 23. h4 Rg6 24. Qh5 Rag8 25. N1g3 Qe8 26. Bd3 Qf8 27. axb5 axb5 28. Bxc4 bxc4 29. Ne3 c3 30. Qf3 Bc8 31. Ra8 Qe7 32. Kh2 Bg4 33. Nxg4 Rxa8 34. h5 Rg5 35. Nxf6+ Kg7 36. Ng4 Rxg4 37. Nf5+ Kf8 38. Nxe7 Rh4+ 39. Kg1 Rf4 40. Qxf4 exf4 41. Nf5 Ra2 42. Rc1 Rxf2 43. Kh1 c2 44. b5 Rd2 45. Kh2 f3 46. Kg3 f2 47. Ra1 Kg8 48. Rc1 Rd1 49. Rxc2 {0-} 0-1

[Event "45th FIDE Olympiad 2024"]
[Site "Budapest"]
[Date "2024.09.14"]
[Round "4.63"]
[White "Hossain, Enamul"]
[Black "Fressinet, Laurent"]
[Result "0-1"]
[ECO "C54"]
[WhiteElo "2354"]
[BlackElo "2616"]
[Annotator "TA"]
[PlyCount "58"]
[EventDate "2024.09.05"]
[EventType "team-tourn"]
[EventCountry "HUN"]
[SourceTitle "playchess.com"]
[Source "ChessBase"]
[SourceQuality "1"]
[WhiteTeam "Bangladesh"]
[BlackTeam "France"]
[WhiteTeamCountry "BAN"]
[BlackTeamCountry "FRA"]
[TimeControl "40/5400+30:1800+30"]

{[%evp 9,58,18,27,17,27,14,26,13,13,8,18,20,14,6,27,27,24,0,1,0,28,-35,-36,-39,-42,-52,-48,-48,-37,-21,-36,-29,-40,-287,-95,-179,-177,-515,-518,-516,-518,-517,-516,-509,-508,-599,-612,-612,-603,-604,-571]} 1. e4 {[%emt 0:00:08]} e5 {[%emt 0:00:04]} 2. Nf3 {[%emt 0:00:13]} Nc6 {[%emt 0:00:04]} 3. Bc4 {[%emt 0:00:40]} Nf6 {[%emt 0:00:09]} 4. d3 {[%emt 0:00:12]} Bc5 {[%emt 0:00:19]} 5. c3 {[%emt 0:02:28]} d6 {[%emt 0:00:36]} 6. a4 {[%emt 0:01:10] Strongly threatening b4.} a5 {[%emt 0:00:32]} 7. O-O {[%emt 0:02:25]} Ba7 {[%emt 0:07:25]} 8. Re1 {[%emt 0:01:27] White has an edge.} O-O {[%emt 0:04:05]} 9. h3 {[%emt 0:00:49]} Be6 {[%emt 0:07:56]} 10. Bxe6 {[%emt 0:06:01]} fxe6 {[%emt 0:00:29]} 11. Be3 {[%emt 0:00:08]} Bxe3 {[%emt 0:03:40]} 12. Rxe3 {[%emt 0:03:03]} d5 {[%emt 0:02:11]} 13. Na3 {[%emt 0:09:38]} d4 {[%emt 0:04:24]} 14. Re1 {[%emt 0:05:50]} Nh5 {[%emt 0:08:24]} 15. cxd4 {[%emt 0:12:57]} ({White should try} 15. Nxd4 $11 exd4 16. Qxh5) 15... exd4 $15 {[%emt 0:02:27]} 16. Nb5 {[%emt 0:12:45]} Nf4 {[%emt 0:03:45]} (16... Qf6 {feels hotter.} 17. e5 Qg6 18. Nfxd4 Nxd4 19. Nxd4 Nf4) 17. e5 {[%emt 0:10:25] Inhibits Qf6.} Qe8 {[%emt 0:17:42] ...Qg6 is the strong threat.} 18. Nfxd4 {[%emt 0:15:45]} Nxd4 {[%emt 0:11:38]} 19. Nxd4 {[%emt 0:00:07]} Rd8 {[%emt 0:00:14]} 20. Re4 {[%emt 0:02:38]} c5 $40 {[%emt 0:00:47][%mdl 128] Black mounts an attack.} (20... Rd5 {simplifies} 21. Qd2 Qd7 22. Rxf4 Rxf4 23. Qxf4 Rxd4 24. Qe3 b6) 21. Nb5 {[%emt 0:02:07] [#]} ({Only move:} 21. Ne2 $1 $15 Nxd3 (21... Rxd3 22. Qc2 $11) 22. Qb3) 21... Qg6 $2 {[%emt 0:03:26]} ({Less strong is} 21... Nxd3 22. Qb3 Qf7 (22... Nxf2 23. Re3 $11) (22... Rxf2 $2 23. Nd6 $16) 23. f3 $15) (21... Rxd3 $19 {is more deadly.} 22. Qg4 (22. Qc1 $2 Qf7 $19) 22... h5 23. Qxf4 Rxf4 24. Rxf4 Qd8) 22. Rxf4 {[%emt 0:01:47]} Rxf4 $19 {[%emt 0:00:08]} 23. Qc1 $2 {[%emt 0:00:12]} (23. Nd6 {is more resistant.}) 23... Rdf8 {[%emt 0:02:29] Black is clearly winning.} 24. Qxc5 {[%emt 0:03:27]} Rxf2 {[%emt 0:03:30]} 25. Qxf2 {[%emt 0:02:59]} Rxf2 {[%emt 0:00:06]} 26. Kxf2 {[%emt 0:00:03]} Qxd3 {[%emt 0:00:09] KQ-KRN} 27. Re1 {[%emt 0:00:32]} Qc2+ {[%emt 0:00:28]} 28. Re2 {[%emt 0:00:07]} Qxa4 {[%emt 0:00:06]} 29. Nd6 {[%emt 0:00:08]} b5 {[%emt 0:00:50] Weighted Error Value: White=0.49/Black=0.17 (very precise) .  Loses game:     	White=1     	---        Missed win:     	---       	Black=1      Mistake:       	White=3     	---        Inaccurate:     	---       	Black=1      OK:         	White=4     	Black=8      Best:        	White=3     	Black=1} 0-1

[Event "45th FIDE Olympiad 2024"]
[Site "Budapest"]
[Date "2024.09.14"]
[Round "4.63"]
[White "Francis, Nigel"]
[Black "Angel Estanislao Gatjens Capch"]
[Result "1/2-1/2"]
[ECO "B12"]
[WhiteElo "1775"]
[BlackElo "1849"]
[PlyCount "129"]
[EventDate "2024.09.05"]
[EventType "team-tourn"]
[EventCountry "HUN"]
[WhiteTeam "Dominica"]
[BlackTeam "Equatorial Guinea"]
[WhiteTeamCountry "DMA"]
[TimeControl "40/5400+30:1800+30"]

1. e4 c6 2. d4 d5 3. e5 c5 4. dxc5 Nc6 5. f4 e6 6. Nf3 Bxc5 7. a3 a5 8. Nc3 Nh6 9. Na4 Ba7 10. c3 Ng4 11. Nd4 h5 12. Be2 Bd7 13. Bxg4 Qh4+ 14. g3 Qxg4 15. Nb5 Qxd1+ 16. Kxd1 Bb8 17. Nd6+ Ke7 18. Nxb7 Ba7 19. Nac5 Rhb8 20. b4 Bc8 21. Nd6 Bb6 22. Na4 Bc7 23. Nxc8+ Rxc8 24. Be3 axb4 25. Bc5+ Ke8 26. axb4 Rcb8 27. Kd2 f6 28. exf6 gxf6 29. Rhe1 Kf7 30. Nb2 Rxa1 31. Rxa1 d4 32. Nc4 dxc3+ 33. Kxc3 Rc8 34. Bd6 Bd8 35. Bc5 Rb8 36. Ra6 Ne7 37. Ra7 Ke8 38. Nd6+ Kf8 39. Kc4 Kg8 40. Nb7 Nc6 41. Ra6 Nxb4 42. Bxb4 Rxb7 43. Ra8 Kf7 44. Rxd8 Rc7+ 45. Bc5 Rb7 46. Rh8 Kg6 47. Re8 Kf5 48. Rh8 Kg6 49. Bd4 Rc7+ 50. Kd3 Rd7 51. Ke4 Rc7 52. Rf8 e5 53. fxe5 fxe5 54. Bxe5 Rc4+ 55. Bd4 Rc2 56. Rf2 Rc6 57. h4 Re6+ 58. Be5 Ra6 59. Rf5 Ra4+ 60. Bd4 Rxd4+ 61. Ke5 Rd5+ 62. Kxd5 Kxf5 63. Kd4 Kg4 64. Ke3 Kxg3 65. Ke2 1/2-1/2

[Event "45th FIDE Olympiad 2024"]
[Site "Budapest"]
[Date "2024.09.14"]
[Round "4.64"]
[White "Lagarde, Maxime"]
[Black "Murshed, Niaz"]
[Result "1-0"]
[ECO "C92"]
[WhiteElo "2598"]
[BlackElo "2318"]
[Annotator "TA"]
[PlyCount "67"]
[EventDate "2024.09.05"]
[EventType "team-tourn"]
[EventCountry "HUN"]
[SourceTitle "playchess.com"]
[Source "ChessBase"]
[SourceQuality "1"]
[WhiteTeam "France"]
[BlackTeam "Bangladesh"]
[WhiteTeamCountry "FRA"]
[BlackTeamCountry "BAN"]
[TimeControl "40/5400+30:1800+30"]

{[%evp 18,67,31,9,22,0,31,23,28,16,34,29,30,52,36,0,0,0,0,0,52,56,61,42,56,55,52,49,52,53,56,49,52,51,49,10,78,62,62,68,127,128,171,169,228,164,316,311,563,563,503,497]} 1. e4 {[%emt 0:00:02]} e5 {[%emt 0:00:10]} 2. Nf3 {[%emt 0:00:13]} Nc6 {[%emt 0:00:07]} 3. Bb5 {[%emt 0:00:22]} a6 {[%emt 0:00:11]} 4. Ba4 {[%emt 0:00:04]} Nf6 {[%emt 0:00:08]} 5. O-O {[%emt 0:00:16]} Be7 {[%emt 0:00:16]} 6. Re1 {[%emt 0:00:16]} b5 {[%emt 0:00:57]} 7. Bb3 {[%emt 0:00:07]} d6 {[%emt 0:00:14]} 8. c3 {[%emt 0:00:11]} O-O {[%emt 0:00:10]} 9. h3 {[%emt 0:00:04]} Bb7 {[%emt 0:00:15]} 10. d3 {[%emt 0:02:12]} h6 {[%emt 0:06:29]} 11. Be3 {[%emt 0:04:43]} d5 {[%emt 0:14:30]} 12. Nbd2 {[%emt 0:00:30][%cal Bb1d2,Bd2f1,Bf1g3,Bg3e2][%mdl 32]} d4 {[%emt 0:00:58] White has an edge.} 13. cxd4 {[%emt 0:00:08]} exd4 {[%emt 0:00:03]} 14. Bf4 {[%emt 0:00:17]} Na5 $1 {[%emt 0:00:20]} 15. Bc2 {[%emt 0:09:16]} c5 {[%emt 0:01:29]} 16. Nf1 {[%emt 0:00:53]} Re8 {[%emt 0:15:12]} 17. Rc1 {[%emt 0:12:34]} Bf8 {[%emt 0:06:29]} 18. Ng3 {[%emt 0:00:27]} Bc8 {[%emt 0:03:33] [#]} (18... Nc6 $11) 19. b4 $1 $14 {[%emt 0:17:20]} cxb4 {[%emt 0:03:17]} 20. Bb1 {[%emt 0:06:23]} Ra7 {[%emt 0:03:38][%cal Ob4b3] Inhibits Bc7.} 21. Ne2 {[%emt 0:05:26]} Nd7 {[%emt 0:23:04]} 22. Nexd4 {[%emt 0:06:07]} Nc5 {[%emt 0:00:19]} 23. Nb3 $36 {[%emt 0:03:47][%mdl 2048] White has the initiative.} Naxb3 {[%emt 0:02:16]} 24. axb3 {[%emt 0:00:03]} Be6 {[%emt 0:00:59]} 25. Bc2 {[%emt 0:00:24]} f5 {[%emt 0:01:39]} 26. Ne5 {[%emt 0:08:55]} Qf6 {[%emt 0:10:12] [#]} (26... Ra8 $1 $11) 27. exf5 $1 $16 {[%emt 0:04:28]} Bxf5 {[%emt 0:00:15]} 28. Bg3 {[%emt 0:00:24]} Ne6 {[%emt 0:05:35]} (28... Nd7 $14) 29. d4 {[%emt 0:00:35][%cal Bd3d4,Bd4d5][%mdl 32]} Bxc2 {[%emt 0:00:54]} 30. Rxc2 {[%emt 0:00:45]} a5 {[%emt 0:00:32]} (30... Nf4 $142 31. Rc6 Qf5 32. Bxf4 Qxf4) 31. Rce2 $18 {[%emt 0:03:18] d5 is the strong threat.} Nc7 {[%emt 0:01:13]} (31... Rc8 {was necessary.}) 32. d5 {[%emt 0:07:11] Threatens to win with Nc6.} Ra6 {[%emt 0:00:14]} (32... Rd8 33. Rd2 Raa8) 33. Nd7 {[%emt 0:02:29][%csl LRc7,LRe8,LRf6]} Qf7 {[%emt 0:00:10]} 34. Nxf8 {[%emt 0:00:35] Weighted Error Value: White=0.06 (flawless) /Black=0.34.  Mistake:       	---       	Black=6      Inaccurate:     	White=2     	Black=2      OK:         	White=14    	Black=10     Best:        	White=1     	Black=2      Strong:       	White=1     	Black=1      Brilliant:      	White=1     	---} (34. Bxc7 Rxe2 35. Rxe2 (35. Qxe2 Qxd7 36. Qe5 g6 $11) 35... Qxd7 $16) 1-0